bitfinex/quotes_BTCUSD_20240902
["timestamp","ask_amount","ask_price","bid_price","bid_amount"]
[1725266908683,0.240043,58323.0,58314.0,0.13787318]
[1725266908914,0.240039,58324.0,58318.0,0.25790218]
[1725266909157,0.120005,58331.0,58325.0,0.120015]
[1725266909419,0.12001,58329.0,58324.0,0.120019]
[1725266909841,0.240011,58331.0,58322.0,0.13787318]
[1725266909842,0.120015,58326.0,58322.0,0.13787318]
[1725266910054,0.120015,58326.0,58319.0,0.1937]
[1725266910269,0.120018,58325.0,58320.0,0.120026]
[1725266910469,0.240027,58327.0,58315.0,0.240074]
[1725266910470,0.120028,58320.0,58315.0,0.25157318]
[1725266910724,0.005,58348.0,58316.0,0.1]
[1725266910725,0.240035,58325.0,58316.0,0.1]
[1725266910935,0.120023,58322.0,58316.0,0.220034]
[1725266911147,0.120026,58321.0,58316.0,0.220034]
[1725266911354,0.120026,58321.0,58319.0,0.001]
[1725266911621,0.02690204,58329.0,58320.0,0.11812918]
[1725266911831,0.02690204,58329.0,58328.0,0.13787318]
[1725266912899,0.02690204,58329.0,58328.0,0.36858318]
[1725266913111,0.02690204,58329.0,58328.0,0.38158318]
[1725266913747,0.02690204,58329.0,58328.0,0.26157318]
[1725266913963,0.02690204,58329.0,58328.0,0.38158318]
[1725266915085,0.02690204,58329.0,58328.0,0.71260418]
[1725266915303,0.02690204,58329.0,58328.0,0.71360418]
[1725266916335,0.02690204,58329.0,58328.0,0.47358318]
[1725266916541,0.02690204,58329.0,58328.0,0.47258318]
[1725266916973,0.119995,58336.0,58331.0,0.120003]
[1725266917186,0.119995,58336.0,58334.0,0.13787318]
[1725266917397,0.119995,58336.0,58334.0,0.13782847]
[1725266917801,0.239983,58338.0,58334.0,0.13782847]
[1725266918013,0.119996,58335.0,58334.0,0.13782847]
[1725266918866,0.119993,58337.0,58334.0,0.13782847]
[1725266919724,0.119993,58337.0,58333.0,0.12]
[1725266920355,0.119993,58337.0,58331.0,0.36001]
[1725266920785,0.119994,58336.0,58331.0,0.36001]
[1725266920983,0.119994,58337.0,58334.0,0.014]
[1725266921192,0.02689611,58338.0,58337.0,0.59996]
[1725266921403,0.02689611,58338.0,58335.0,0.36337318]
[1725266921404,0.119972,58347.0,58338.0,0.239979]
[1725266921612,0.327725,58352.0,58335.0,0.58036418]
[1725266921613,0.02689387,58344.0,58343.0,0.25785318]
[1725266922242,0.02689387,58344.0,58343.0,0.13787318]
[1725266923088,0.02689387,58344.0,58342.0,0.119981]
[1725266923495,0.02689387,58344.0,58340.0,0.119985]
[1725266923707,0.02689387,58344.0,58341.0,0.119984]
[1725266923914,0.02689387,58344.0,58339.0,0.37784918]
[1725266924283,0.02689387,58344.0,58343.0,0.15187318]
[1725266924706,0.02689387,58344.0,58343.0,0.35785318]
[1725266924915,0.02689387,58344.0,58343.0,0.23787318]
[1725266925125,0.14687187,58344.0,58343.0,0.1]
[1725266925541,0.62678387,58344.0,58343.0,0.1]
[1725266925757,0.119983,58342.0,58339.0,0.005]
[1725266925960,0.26684987,58344.0,58337.0,0.219992]
[1725266925961,0.119984,58341.0,58337.0,0.1]
[1725266926587,0.119984,58341.0,58339.0,0.005]
[1725266926802,0.239965,58342.0,58337.0,0.1]
[1725266927009,0.239965,58342.0,58339.0,0.005]
[1725266927229,0.119985,58341.0,58337.0,0.1]
[1725266927432,0.119987,58340.0,58337.0,0.114]
[1725266927642,0.239969,58341.0,58337.0,0.114]
[1725266927855,0.239965,58342.0,58337.0,0.114]
[1725266928069,0.119987,58340.0,58337.0,0.1]
[1725266928297,0.119988,58339.0,58337.0,0.1]
[1725266928536,0.11999,58338.0,58337.0,0.1]
[1725266928948,0.239968,58341.0,58337.0,0.1]
[1725266929157,0.119988,58339.0,58337.0,0.1]
[1725266929362,0.239965,58342.0,58337.0,0.1]
[1725266929363,0.11999,58338.0,58337.0,0.1]
[1725266929594,0.11999,58338.0,58337.0,0.105]
[1725266929798,0.239969,58341.0,58337.0,0.105]
[1725266930153,0.119988,58340.0,58337.0,0.105]
[1725266930403,0.23996,58343.0,58337.0,0.10842802]
[1725266930627,0.239951,58346.0,58337.0,0.10842802]
[1725266930628,0.119974,58346.0,58339.0,0.13787318]
[1725266930850,0.119976,58345.0,58340.0,0.219985]
[1725266931062,0.239937,58349.0,58340.0,0.219985]
[1725266931268,0.119976,58345.0,58340.0,0.219985]
[1725266931696,0.119972,58347.0,58341.0,0.119983]
[1725266931909,0.239937,58349.0,58342.0,0.1]
[1725266931910,0.119974,58346.0,58342.0,0.1]
[1725266932537,0.14686382,58347.0,58343.0,0.00342766]
[1725266932746,0.14686382,58347.0,58342.0,0.1]
[1725266932977,0.119974,58346.0,58342.0,0.1]
[1725266934058,0.119974,58346.0,58342.0,0.114]
[1725266934988,0.14686382,58347.0,58343.0,0.1888]
[1725266936247,0.14686382,58347.0,58343.0,0.308779]
[1725266936248,0.02689182,58347.0,58343.0,0.308779]
[1725266936468,0.14686382,58347.0,58343.0,0.1888]
[1725266937124,0.14686382,58347.0,58343.0,0.2028]
[1725266938016,0.119974,58346.0,58343.0,0.2028]
[1725266938450,0.02689182,58347.0,58343.0,0.2028]
[1725266938451,0.359934,58344.0,58343.0,0.014]
[1725266939069,0.02689182,58347.0,58344.0,0.204176]
[1725266939282,0.02689182,58347.0,58344.0,0.08762756]
[1725266939496,0.02689182,58347.0,58344.0,0.0842]
[1725266939734,0.02689182,58347.0,58344.0,0.204177]
[1725266940030,0.02689182,58347.0,58345.0,0.10832753]
[1725266940228,0.02689182,58347.0,58345.0,0.0927]
[1725266940436,0.02689182,58347.0,58346.0,0.13862445]
[1725266940642,0.02689182,58347.0,58345.0,0.0961275]
[1725266940857,0.02689182,58347.0,58346.0,0.119973]
[1725266941552,0.02689182,58347.0,58346.0,0.49779318]
[1725266941785,0.02689182,58347.0,58346.0,0.25784618]
[1725266942015,0.119965,58351.0,58346.0,0.119973]
[1725266942667,0.119956,58355.0,58350.0,0.119964]
[1725266942879,0.239903,58357.0,58351.0,0.00342721]
[1725266942880,0.119952,58357.0,58351.0,0.00342721]
[1725266943089,0.119952,58357.0,58350.0,0.239931]
[1725266943300,0.085,58362.0,58355.0,0.223854]
[1725266943506,0.119947,58359.0,58355.0,0.1039]
[1725266943927,0.119942,58362.0,58356.0,0.119952]
[1725266944131,0.11994,58363.0,58358.0,0.119948]
[1725266944775,0.119939,58363.0,58356.0,0.239905]
[1725266944999,0.119939,58363.0,58358.0,0.119948]
[1725266946044,0.119931,58367.0,58362.0,0.11994]
[1725266946259,0.119936,58365.0,58363.0,0.1]
[1725266946477,0.119936,58364.0,58363.0,0.1]
[1725266946690,0.359809,58364.0,58363.0,0.1]
[1725266947615,0.119941,58362.0,58359.0,0.1]
[1725266948033,0.119938,58364.0,58359.0,0.219946]
[1725266948490,0.119934,58366.0,58360.0,0.119944]
[1725266948711,0.119934,58365.0,58361.0,0.1]
[1725266949366,0.119934,58365.0,58362.0,0.1023]
[1725266949600,0.119932,58367.0,58363.0,0.1]
[1725266949806,0.119933,58366.0,58363.0,0.1]
[1725266950017,0.239859,58368.0,58363.0,0.1]
[1725266950228,0.119934,58366.0,58363.0,0.1]
[1725266950443,0.11993,58368.0,58364.0,0.0823]
[1725266950648,0.119927,58369.0,58366.0,0.13787318]
[1725266950859,0.119924,58370.0,58366.0,0.25780518]
[1725266951066,0.119924,58370.0,58366.0,0.13787318]
[1725266951067,0.119925,58370.0,58366.0,0.13787318]
[1725266951280,0.119923,58371.0,58366.0,0.13787318]
[1725266951701,0.239838,58373.0,58367.0,0.11993]
[1725266951902,0.239842,58372.0,58366.0,0.13787318]
[1725266952147,0.119924,58370.0,58366.0,0.13787318]
[1725266952384,0.119924,58370.0,58366.0,0.25780418]
[1725266952844,0.14680499,58370.0,58366.0,0.25780418]
[1725266953068,0.02688099,58370.0,58367.0,0.11993]
[1725266953286,0.02688099,58370.0,58368.0,0.119928]
[1725266953536,0.02688099,58370.0,58369.0,0.119926]
[1725266953745,0.02688099,58370.0,58369.0,0.222426]
[1725266954230,0.02688099,58370.0,58369.0,0.462279]
[1725266954437,0.02688099,58370.0,58369.0,0.702132]
[1725266954866,0.02688099,58370.0,58369.0,0.716132]
[1725266956373,0.02688099,58370.0,58369.0,0.895932]
[1725266957053,0.000816,58376.0,58375.0,0.119914]
[1725266957906,0.000816,58376.0,58375.0,0.359742]
[1725266959265,0.000816,58376.0,58375.0,0.463942]
[1725266959999,0.000816,58376.0,58375.0,0.477942]
[1725266960236,0.000816,58376.0,58375.0,0.014]
[1725266960476,0.000816,58376.0,58373.0,0.119917]
[1725266960714,0.000816,58376.0,58375.0,0.014]
[1725266961912,0.02769396,58376.0,58375.0,0.014]
[1725266962175,0.02769396,58376.0,58372.0,0.119919]
[1725266962408,0.02769396,58376.0,58373.0,0.133917]
[1725266962893,0.02769396,58376.0,58371.0,0.0979]
[1725266963363,0.14760596,58376.0,58375.0,0.014]
[1725266963612,0.02769396,58376.0,58375.0,0.014]
[1725266963883,0.02769396,58376.0,58372.0,0.38113907]
[1725266963884,0.02769396,58376.0,58374.0,0.119914]
[1725266964122,0.02769396,58376.0,58375.0,0.119914]
[1725266964338,0.239797,58383.0,58374.0,0.239832]
[1725266964339,0.119904,58380.0,58376.0,0.119911]
[1725266964548,0.239797,58383.0,58376.0,0.119911]
[1725266964771,0.119902,58381.0,58376.0,0.119911]
[1725266965635,0.239793,58384.0,58377.0,0.25778218]
[1725266965851,0.1199,58382.0,58378.0,0.00342551]
[1725266966501,0.1199,58382.0,58377.0,0.25778218]
[1725266966986,0.119902,58381.0,58377.0,0.25778218]
[1725266967638,0.119902,58381.0,58378.0,0.014]
[1725266968059,0.239789,58385.0,58378.0,0.119907]
[1725266968300,0.0787,58386.0,58380.0,0.119904]
[1725266968513,0.001,58392.0,58385.0,0.13787318]
[1725266968733,0.0861,58397.0,58391.0,0.13787318]
[1725266968970,0.119876,58394.0,58391.0,0.13787318]
[1725266969185,0.119879,58392.0,58391.0,0.13787318]
[1725266969408,0.119882,58391.0,58387.0,0.13787318]
[1725266969843,0.001,58396.0,58387.0,0.13787318]
[1725266970053,0.119885,58390.0,58387.0,0.13787318]
[1725266970506,0.0014,58399.0,58390.0,0.119882]
[1725266970507,0.0004,58399.0,58390.0,0.119882]
[1725266970724,0.0004,58399.0,58393.0,0.13761828]
[1725266970725,0.239739,58397.0,58393.0,0.13761828]
[1725266970982,0.11987,58397.0,58393.0,0.13761828]
[1725266971432,0.11987,58397.0,58393.0,0.25749528]
[1725266971652,0.0004,58399.0,58393.0,0.25749528]
[1725266971653,0.119867,58398.0,58393.0,0.25749528]
[1725266972068,0.11987,58397.0,58393.0,0.25749528]
[1725266972306,0.119871,58396.0,58393.0,0.13761828]
[1725266972525,0.119873,58395.0,58391.0,0.1233048]
[1725266972733,0.239739,58397.0,58391.0,0.11988]
[1725266972934,0.119873,58395.0,58393.0,0.014]
[1725266973355,0.119873,58395.0,58389.0,0.13787318]
[1725266973583,0.119876,58394.0,58389.0,0.25775818]
[1725266973797,0.119876,58394.0,58391.0,0.014]
[1725266974011,0.324453,58394.0,58391.0,0.014]
[1725266974216,0.239756,58393.0,58386.0,0.1]
[1725266974422,0.119883,58391.0,58386.0,0.219891]
[1725266974632,0.119883,58391.0,58389.0,0.014]
[1725266975697,0.119883,58391.0,58386.0,0.219891]
[1725266976361,0.324453,58394.0,58386.0,0.219891]
[1725266976362,0.359668,58387.0,58386.0,0.1]
[1725266976613,0.119899,58383.0,58379.0,0.1]
[1725266976829,0.239791,58384.0,58379.0,0.1]
[1725266977063,0.119898,58383.0,58380.0,0.005]
[1725266977286,0.119898,58383.0,58379.0,0.1]
[1725266977755,0.47956,58387.0,58386.0,0.014]
[1725266977756,0.359668,58387.0,58386.0,0.014]
[1725266978197,0.683047,58387.0,58386.0,0.014]
[1725266978414,0.923826,58387.0,58386.0,0.014]
[1725266979101,0.239801,58382.0,58377.0,0.005]
[1725266979307,0.119904,58380.0,58379.0,0.014]
[1725266979719,0.119906,58379.0,58378.0,0.1]
[1725266980173,0.23979,58385.0,58378.0,0.1]
[1725266980396,0.23979,58385.0,58379.0,0.0034255]
[1725266980610,0.1199,58382.0,58378.0,0.1]
[1725266981044,0.119903,58381.0,58378.0,0.114]
[1725266981490,0.119906,58379.0,58378.0,0.114]
[1725266981701,0.359718,58379.0,58378.0,0.014]
[1725266982329,0.11991,58377.0,58374.0,0.1]
[1725266982792,0.359719,58379.0,58374.0,0.1]
[1725266983019,0.119914,58375.0,58374.0,0.1]
[1725266984154,0.359742,58375.0,58374.0,0.1]
[1725266984619,0.359742,58375.0,58368.0,0.13787318]
[1725266984620,0.119927,58369.0,58368.0,0.1]
[1725266984854,0.119927,58369.0,58366.0,0.1069]
[1725266984855,0.11993,58367.0,58366.0,0.1069]
[1725266985069,0.359791,58367.0,58366.0,0.1069]
[1725266985289,0.119941,58362.0,58361.0,0.1019]
[1725266985814,0.119944,58361.0,58358.0,0.1019]
[1725266986025,0.239866,58366.0,58358.0,0.1019]
[1725266986245,0.23987,58365.0,58358.0,0.1019]
[1725266986532,0.119942,58362.0,58358.0,0.1019]
[1725266986743,0.119947,58359.0,58358.0,0.1019]
[1725266986977,0.119953,58357.0,58354.0,0.1882]
[1725266988211,0.119954,58356.0,58354.0,0.1882]
[1725266988697,0.239909,58356.0,58349.0,0.1877]
[1725266988941,0.11996,58353.0,58349.0,0.1877]
[1725266989417,0.11996,58353.0,58345.0,0.015]
[1725266989418,0.120964,58351.0,58345.0,0.099]
[1725266989661,0.24092,58353.0,58345.0,0.099]
[1725266989910,0.119973,58346.0,58345.0,0.099]
[1725266990149,0.119973,58346.0,58343.0,0.0839]
[1725266990384,0.119976,58345.0,58343.0,0.0839]
[1725266990883,0.119985,58341.0,58335.0,0.229196]
[1725266991108,0.239957,58344.0,58335.0,0.1092]
[1725266991332,0.11999,58338.0,58335.0,0.1092]
[1725266992232,0.119992,58337.0,58335.0,0.1092]
[1725266992440,0.119992,58337.0,58336.0,0.1]
[1725266992650,0.119989,58339.0,58333.0,0.219999]
[1725266992859,0.26786029,58342.0,58335.0,0.005]
[1725266993064,0.119991,58338.0,58335.0,0.019]
[1725266993493,0.119991,58338.0,58335.0,0.005]
[1725266993728,0.119991,58338.0,58334.0,0.005]
[1725266994008,0.119993,58337.0,58333.0,0.114]
[1725266994463,0.119993,58337.0,58334.0,0.005]
[1725266994699,0.119994,58336.0,58333.0,0.114]
[1725266994934,0.119997,58335.0,58333.0,0.114]
[1725266995195,0.119997,58335.0,58320.0,0.240051]
[1725266995196,0.120007,58330.0,58327.0,0.102]
[1725266995451,0.0857,58337.0,58327.0,0.102]
[1725266995452,0.12001,58328.0,58327.0,0.102]
[1725266995951,0.02689435,58335.0,58324.0,0.1016]
[1725266995952,0.120014,58327.0,58324.0,0.1016]
[1725266996206,0.240009,58331.0,58324.0,0.1016]
[1725266996207,0.120017,58325.0,58324.0,0.1016]
[1725266996675,0.120017,58325.0,58317.0,0.120031]
[1725266996676,0.240034,58325.0,58319.0,0.0828]
[1725266996908,0.240009,58331.0,58319.0,0.0828]
[1725266996909,0.240038,58324.0,58319.0,0.0828]
[1725266997184,0.12002,58324.0,58318.0,0.005]
[1725266997886,0.120022,58323.0,58318.0,0.005]
[1725266998348,0.120018,58325.0,58318.0,0.225031]
[1725266998793,0.120019,58324.0,58318.0,0.225031]
[1725266999061,0.0214993,58472.0,58318.0,0.225031]
[1725266999062,0.240015,58330.0,58319.0,0.003429]
[1725266999298,0.120011,58328.0,58322.0,0.120022]
[1725266999575,0.23999,58336.0,58324.0,0.240037]
[1725266999830,0.119999,58334.0,58327.0,0.120012]
[1725267000087,0.001,58325.0,58324.0,0.360054]
[1725267000322,0.001,58325.0,58324.0,0.460054]
[1725267000562,0.14689647,58334.0,58328.0,0.120009]
[1725267000810,0.02689847,58334.0,58329.0,0.120008]
[1725267001062,0.02689847,58334.0,58329.0,0.119008]
[1725267002303,0.02689847,58334.0,58327.0,0.120012]
[1725267002548,0.360025,58329.0,58328.0,0.014]
[1725267003020,0.360025,58329.0,58319.0,0.60540786]
[1725267003021,0.240041,58324.0,58319.0,0.1]
[1725267003250,0.120025,58321.0,58319.0,0.1]
[1725267003486,0.360066,58323.0,58319.0,0.1]
[1725267003719,0.120022,58323.0,58319.0,0.1]
[1725267004217,0.240014,58330.0,58319.0,0.00342915]
[1725267004218,0.241014,58330.0,58319.0,0.00342915]
[1725267004461,0.0808,58333.0,58320.0,0.12345594]
[1725267004728,0.0808,58333.0,58321.0,0.1]
[1725267004729,0.121014,58327.0,58321.0,0.1]
[1725267004986,0.001,58327.0,58321.0,0.1]
[1725267005215,0.120009,58329.0,58328.0,0.014]
[1725267005216,0.001,58329.0,58328.0,0.014]
[1725267005443,0.001,58329.0,58328.0,0.1179]
[1725267005674,0.02690041,58329.0,58328.0,0.1905]
[1725267006163,0.02690041,58329.0,58328.0,0.30951]
[1725267007085,0.001,58329.0,58328.0,0.563531]
[1725267007302,0.001,58329.0,58328.0,0.42351]
[1725267008219,0.001,58329.0,58328.0,1.143573]
[1725267008450,0.47,58344.0,58337.0,0.119991]
[1725267008681,0.001,58349.0,58339.0,0.239973]
[1725267008903,0.11997,58348.0,58340.0,0.204885]
[1725267009124,0.119972,58347.0,58340.0,0.204885]
[1725267009405,0.119972,58347.0,58341.0,0.1012]
[1725267009854,0.001,58349.0,58342.0,0.119981]
[1725267010343,0.02689206,58348.0,58343.0,0.119979]
[1725267010591,0.02689206,58348.0,58341.0,0.221183]
[1725267010823,0.02689206,58348.0,58341.0,0.1012]
[1725267010824,0.14686206,58348.0,58341.0,0.1012]
[1725267011050,0.119973,58347.0,58341.0,0.1012]
[1725267011286,0.02689206,58348.0,58341.0,0.1012]
[1725267011530,0.02689206,58348.0,58343.0,0.119979]
[1725267012019,0.02689206,58348.0,58344.0,0.119978]
[1725267012244,0.02689206,58348.0,58342.0,0.009]
[1725267012465,0.23996,58343.0,58332.0,0.0906]
[1725267012700,0.119983,58342.0,58335.0,0.119996]
[1725267012938,0.119983,58342.0,58336.0,0.1]
[1725267013167,0.02689401,58341.0,58336.0,0.1]
[1725267014074,0.02689401,58341.0,58336.0,0.219994]
[1725267014295,0.02689401,58341.0,58337.0,0.00342806]
[1725267014524,0.02689401,58341.0,58340.0,0.461458]
[1725267014741,0.02689401,58341.0,58340.0,0.78043]
[1725267014972,0.0789,58357.0,58345.0,0.119975]
[1725267014973,0.11996,58353.0,58345.0,0.119975]
[1725267015216,0.119963,58352.0,58343.0,0.239959]
[1725267015433,0.119963,58352.0,58344.0,0.119977]
[1725267015434,0.02689225,58347.0,58344.0,0.119977]
[1725267015648,0.02689225,58347.0,58343.0,0.239959]
[1725267015862,0.02689225,58347.0,58346.0,0.35992]
[1725267016090,0.02689225,58347.0,58346.0,0.599867]
[1725267016332,0.02689225,58347.0,58346.0,0.35992]
[1725267016585,0.119948,58359.0,58351.0,0.119961]
[1725267016806,0.119948,58359.0,58349.0,0.239931]
[1725267016807,0.119948,58359.0,58352.0,0.119961]
[1725267017334,0.119944,58361.0,58354.0,0.119956]
[1725267017557,0.119945,58360.0,58352.0,0.11996]
[1725267018009,0.0846,58362.0,58352.0,0.24335011]
[1725267018267,0.001,58363.0,58355.0,0.119954]
[1725267018491,0.120935,58365.0,58358.0,0.119948]
[1725267018721,0.0866,58367.0,58359.0,0.119946]
[1725267018964,0.206531,58367.0,58359.0,0.119946]
[1725267019206,0.206531,58367.0,58358.0,0.239897]
[1725267019207,0.119931,58367.0,58360.0,0.119944]
[1725267019451,0.14681843,58366.0,58358.0,0.119947]
[1725267019669,0.119935,58365.0,58358.0,0.119947]
[1725267020131,0.02688543,58366.0,58358.0,0.119947]
[1725267020346,0.02688543,58366.0,58359.0,0.119945]
[1725267020586,0.119929,58368.0,58360.0,0.119944]
[1725267020837,0.119931,58367.0,58358.0,0.359843]
[1725267021052,0.119933,58366.0,58359.0,0.119946]
[1725267021292,0.119935,58365.0,58357.0,0.22025]
[1725267021518,0.239867,58366.0,58357.0,0.1003]
[1725267021757,0.239867,58366.0,58357.0,0.22025]
[1725267021758,0.119937,58364.0,58357.0,0.22025]
[1725267022010,0.119939,58363.0,58359.0,0.007]
[1725267022488,0.359806,58365.0,58357.0,0.22025]
[1725267022728,0.360806,58365.0,58357.0,0.22825]
[1725267022939,0.119939,58363.0,58357.0,0.008]
[1725267023153,0.119939,58363.0,58356.0,0.119953]
[1725267023606,0.239879,58363.0,58354.0,0.119956]
[1725267023820,0.119941,58362.0,58355.0,0.1]
[1725267024032,0.119941,58362.0,58359.0,0.011]
[1725267024471,0.240871,58365.0,58359.0,0.011]
[1725267024472,0.11994,58363.0,58359.0,0.011]
[1725267024957,0.14682592,58362.0,58359.0,0.011]
[1725267025816,0.14682592,58362.0,58356.0,0.119952]
[1725267026577,0.14682592,58362.0,58355.0,0.1]
[1725267026815,0.14682592,58362.0,58355.0,0.219955]
[1725267027311,0.14682592,58362.0,58356.0,0.012]
[1725267029216,0.119941,58362.0,58356.0,0.119953]
[1725267029883,0.119943,58361.0,58355.0,0.112]
[1725267030093,0.119943,58361.0,58355.0,0.119954]
[1725267030304,0.119943,58361.0,58356.0,0.1]
[1725267030527,0.119943,58361.0,58356.0,0.112]
[1725267030758,0.11994,58363.0,58356.0,0.231953]
[1725267030969,0.119937,58364.0,58356.0,0.1]
[1725267031221,0.119937,58364.0,58358.0,0.119949]
[1725267031647,0.119939,58363.0,58356.0,0.459857]
[1725267031864,0.119939,58363.0,58356.0,0.219951]
[1725267032088,0.119939,58363.0,58357.0,0.11995]
[1725267032565,0.02688488,58362.0,58357.0,0.11995]
[1725267033688,0.239862,58367.0,58357.0,0.11995]
[1725267033904,0.119937,58364.0,58358.0,0.119949]
[1725267034133,0.119937,58364.0,58359.0,0.0795]
[1725267034375,0.119937,58364.0,58360.0,0.102]
[1725267034601,0.239865,58366.0,58360.0,0.102]
[1725267034827,0.359798,58366.0,58360.0,0.102]
[1725267035041,0.119935,58365.0,58360.0,0.102]
[1725267035254,0.239865,58366.0,58360.0,0.102]
[1725267035255,0.119936,58364.0,58360.0,0.102]
[1725267036381,0.119933,58366.0,58360.0,0.221944]
[1725267036596,0.239857,58368.0,58360.0,0.112]
[1725267037030,0.119933,58366.0,58360.0,0.231944]
[1725267037464,0.119934,58365.0,58360.0,0.231944]
[1725267037936,0.119934,58365.0,58360.0,0.112]
[1725267038369,0.119934,58365.0,58360.0,0.102]
[1725267038799,0.119934,58365.0,58360.0,0.11]
[1725267039223,0.119934,58365.0,58360.0,0.102]
[1725267039649,0.119934,58365.0,58360.0,0.111]
[1725267040077,0.119934,58365.0,58360.0,0.230944]
[1725267040725,0.119934,58365.0,58360.0,0.111]
[1725267040940,0.119937,58364.0,58360.0,0.111]
[1725267042044,0.119937,58364.0,58360.0,0.102]
[1725267042313,0.119939,58363.0,58360.0,0.112]
[1725267042789,0.239867,58366.0,58360.0,0.112]
[1725267043022,0.119941,58362.0,58360.0,0.112]
[1725267043278,0.119941,58362.0,58360.0,0.102]
[1725267043491,0.119965,58350.0,58349.0,0.0916]
[1725267043717,0.119965,58350.0,58334.0,0.05606181]
[1725267043718,0.239924,58352.0,58344.0,0.0989]
[1725267043940,0.0758,58355.0,58344.0,0.0989]
[1725267044396,0.119971,58348.0,58344.0,0.0989]
[1725267044615,0.0758,58355.0,58344.0,0.0989]
[1725267044829,0.119972,58347.0,58344.0,0.0989]
[1725267045287,0.26681691,58351.0,58344.0,0.0989]
[1725267045288,0.02688991,58351.0,58344.0,0.0989]
[1725267045528,0.02568604,58361.0,58350.0,0.1758]
[1725267045741,0.239911,58355.0,58350.0,0.1758]
[1725267045955,0.119958,58354.0,58350.0,0.1758]
[1725267046623,0.11996,58353.0,58350.0,0.1758]
[1725267048132,0.119958,58354.0,58350.0,0.1758]
[1725267048345,0.119958,58354.0,58350.0,0.1888]
[1725267048782,0.02788983,58359.0,58350.0,0.1888]
[1725267048999,0.005,58378.0,58350.0,0.1888]
[1725267049000,0.001,58364.0,58350.0,0.31367318]
[1725267049221,0.001,58364.0,58351.0,0.00342704]
[1725267049222,0.239884,58362.0,58351.0,0.00342704]
[1725267049445,0.119943,58361.0,58356.0,0.119952]
[1725267049887,0.321346,58371.0,58356.0,0.119952]
[1725267049888,0.001,58369.0,58361.0,0.119941]
[1725267050127,0.119936,58365.0,58360.0,0.119944]
[1725267050346,0.119937,58364.0,58359.0,0.119946]
[1725267051003,0.119933,58366.0,58361.0,0.119942]
[1725267051224,0.11993,58368.0,58359.0,0.239894]
[1725267051439,0.239854,58369.0,58362.0,0.11994]
[1725267051661,0.119931,58367.0,58362.0,0.11994]
[1725267052312,0.239854,58369.0,58364.0,0.119935]
[1725267052313,0.119927,58369.0,58364.0,0.119935]
[1725267052519,0.119927,58369.0,58360.0,0.239889]
[1725267052520,0.239853,58369.0,58362.0,0.119939]
[1725267052736,0.239853,58369.0,58362.0,0.133939]
[1725267053007,0.119931,58367.0,58362.0,0.133939]
[1725267053239,0.119928,58368.0,58363.0,0.119938]
[1725267053448,0.119928,58368.0,58364.0,0.0954]
[1725267054950,0.26773328,58370.0,58364.0,0.0954]
[1725267054951,0.119931,58367.0,58364.0,0.0954]
[1725267055167,0.26773328,58370.0,58364.0,0.215336]
[1725267055911,0.119929,58368.0,58364.0,0.215336]
[1725267056125,0.119929,58368.0,58364.0,0.229336]
[1725267056335,0.119927,58369.0,58365.0,0.119934]
[1725267056543,0.119927,58369.0,58364.0,0.1094]
[1725267056756,0.119929,58368.0,58364.0,0.0954]
[1725267057458,0.119929,58368.0,58364.0,0.215336]
[1725267057676,0.119929,58368.0,58364.0,0.0954]
[1725267058111,0.119929,58368.0,58364.0,0.215336]
[1725267058746,0.119929,58368.0,58364.0,0.229336]
[1725267058948,0.120929,58368.0,58364.0,0.229336]
[1725267059152,0.120929,58368.0,58364.0,0.215336]
[1725267059363,0.119929,58368.0,58364.0,0.215336]
[1725267059577,0.119929,58368.0,58364.0,0.229336]
[1725267060291,0.119915,58375.0,58370.0,0.119923]
[1725267060542,0.119916,58374.0,58367.0,0.23986]
[1725267060834,0.119918,58373.0,58369.0,0.119925]
[1725267061048,0.119917,58374.0,58369.0,0.119925]
[1725267061311,0.119922,58372.0,58365.0,0.1756]
[1725267061561,0.119922,58372.0,58366.0,0.239863]
[1725267061803,0.239828,58375.0,58366.0,0.119931]
[1725267061804,0.119922,58371.0,58366.0,0.119931]
[1725267062041,0.119922,58371.0,58367.0,0.11993]
[1725267062294,0.119922,58371.0,58370.0,0.014]
[1725267062534,0.119919,58373.0,58370.0,0.014]
[1725267062742,0.11992,58373.0,58368.0,0.119927]
[1725267063537,0.11992,58372.0,58368.0,0.119927]
[1725267064703,0.12092,58372.0,58368.0,0.119927]
[1725267064934,0.12092,58372.0,58366.0,0.13787318]
[1725267065185,0.12092,58372.0,58370.0,0.014]
[1725267065657,0.001,58377.0,58372.0,0.119919]
[1725267065941,0.001,58377.0,58374.0,0.119915]
[1725267066197,0.001,58377.0,58376.0,0.119912]
[1725267066471,0.001,58377.0,58373.0,0.1725]
[1725267066680,0.001,58377.0,58375.0,0.119912]
[1725267066929,0.001,58377.0,58376.0,0.119912]
[1725267067153,0.001,58377.0,58375.0,0.119913]
[1725267067870,0.001,58377.0,58376.0,0.119912]
[1725267068868,0.001,58382.0,58376.0,0.239823]
[1725267069092,0.119899,58383.0,58378.0,0.119907]
[1725267069349,0.02687689,58382.0,58378.0,0.119907]
[1725267069844,0.02687689,58382.0,58379.0,0.119905]
[1725267070781,0.02687689,58382.0,58377.0,0.239819]
[1725267071469,0.02687689,58382.0,58378.0,0.119907]
[1725267071716,0.119903,58381.0,58378.0,0.014]
[1725267071974,0.001,58386.0,58379.0,0.0917]
[1725267071975,0.119899,58383.0,58379.0,0.0917]
[1725267072486,0.001,58386.0,58379.0,0.0917]